fUSD/lending_fUSD_20241220
["ID","MTS","AMOUNT","RATE_DAILY","PERIOD"]
[346113089,1734709832403,-559.81617007,0.00017093,2]
[346113090,1734709832413,-150.0,0.00017243,2]
[346113091,1734709832423,-1060.81,0.00018244,2]
[346113092,1734709832433,-152.4,0.00018594,2]
[346113093,1734709832443,-564.0,0.00018965,2]
[346113094,1734709832452,-632.0,0.00018965,2]
[346113095,1734709832462,-150.0,0.00018965,2]
[346113096,1734709832471,-150.0,0.00018965,2]
[346113097,1734709832481,-150.0,0.00018965,2]
[346113098,1734709832492,-155.255,0.00018965,2]
[346113099,1734709832502,-150.0,0.00018965,2]
[346113100,1734709832512,-150.0,0.00018965,2]
[346113101,1734709832522,-2142.995,0.00018965,2]
[346113102,1734709832532,-600.0,0.00019,2]
[346113103,1734709832541,-250.0,0.00019889,2]
[346113104,1734709832551,-200.0,0.00019894,2]
[346113105,1734709832561,-1000.0,0.00019934,2]
[346113106,1734709832570,-221.43333355,0.00019968,2]
[346113107,1734709832589,-275.36272914,0.00019968,2]
[346113108,1734709832601,-3.20393731,0.00019968,2]
[346113109,1734709832610,-600.0,0.00019968,2]
[346113110,1734709832619,-737.38,0.00019968,2]
[346113111,1734709832629,-224.72,0.0002,2]
[346113112,1734709832639,-20676.7214,0.00020014,2]
[346113113,1734709832648,-250.0,0.00020111,2]
[346113114,1734709832658,-23900.0,0.00020114,2]
[346113115,1734709832668,-250.0,0.000202,2]
[346113116,1734709832678,-226.28,0.00020201,2]
[346113117,1734709832688,-1024.0,0.00020207,2]
[346113118,1734709832698,-901.6,0.00020216,2]
[346113119,1734709832708,-722.37,0.00020233,2]
[346113120,1734709832718,-196.23,0.00020255,2]
[346113121,1734709832727,-800.0,0.00020301,2]
[346113122,1734709832737,-153.0,0.00020331,2]
[346113123,1734709832750,-153.0,0.00020331,2]
[346113124,1734709832761,-153.0,0.00020331,2]
[346113125,1734709832771,-153.0,0.00020331,2]
[346113126,1734709832780,-153.0,0.00020331,2]
[346113127,1734709832791,-153.0,0.00020331,2]
[346113128,1734709832801,-153.0,0.00020331,2]
[346113129,1734709832811,-153.0,0.00020331,2]
[346113130,1734709832821,-153.0,0.00020331,2]
[346113131,1734709832832,-153.0,0.00020331,2]
[346113132,1734709832841,-153.0,0.00020331,2]
[346113133,1734709832851,-153.0,0.00020331,2]
[346113134,1734709832861,-153.0,0.00020331,2]
[346113135,1734709832871,-153.0,0.00020331,2]
[346113136,1734709832881,-153.0,0.00020331,2]
[346113137,1734709832890,-153.0,0.00020331,2]
[346113138,1734709832900,-342.01,0.00020367,2]
[346113139,1734709832910,-1988.07,0.00020418,2]
[346113140,1734709832920,-1060.81,0.00020508,2]
[346113141,1734709832929,-1611.79,0.00020548,2]
[346113143,1734709832939,-196.99570568,0.00020599,2]
[346113145,1734709832948,-150.0,0.00020612,2]
[346113147,1734709832957,-2335.4,0.00020614,2]
[346113149,1734709832967,-2549.1,0.00020699,2]
[346113151,1734709832976,-159.65,0.00020759,2]
[346113153,1734709832986,-209.0,0.0002099,2]
[346113155,1734709832996,-650.0,0.00021,2]
[346113157,1734709833005,-289.16396919,0.00021064,2]
[346113159,1734709833015,-600.0,0.00021064,2]
[346113160,1734709833025,-500.0,0.00021123,2]
[346113162,1734709833036,-226.28,0.00021212,2]
[346113165,1734709833047,-209.0,0.0002144,2]
[346113167,1734709833056,-152.0,0.00021573,3]
[346113168,1734709833066,-150.0,0.000216,4]
[346113170,1734709833076,-150.0,0.000216,4]
[346113172,1734709833087,-150.0,0.000216,4]
[346113175,1734709833097,-150.0,0.000216,4]
[346113176,1734709833107,-150.0,0.000216,4]
[346113178,1734709833117,-150.0,0.000216,4]
[346113180,1734709833127,-152.1,0.00021805,2]
[346113182,1734709833137,-4951.6813,0.00021817,2]
[346113184,1734709833148,-2030.4749,0.00021817,2]
[346113186,1734709833158,-152.1,0.00021823,2]
[346113188,1734709833168,-152.1,0.00021841,2]
[346113190,1734709833178,-152.1,0.00021859,2]
[346113191,1734709833188,-152.1,0.00021877,2]
[346113192,1734709833198,-209.0,0.0002188,2]
[346113193,1734709833208,-152.1,0.00021896,2]
[346113194,1734709833218,-152.1,0.00021914,2]
[346113195,1734709833227,-500.0,0.00021917,4]
[346113196,1734709833236,-500.0,0.00021917,4]
[346113197,1734709833248,-500.0,0.00021917,4]
[346113198,1734709833258,-500.0,0.00021917,4]
[346113199,1734709833268,-500.0,0.00021917,4]
[346113200,1734709833285,-500.0,0.00021917,4]
[346113201,1734709833298,-500.0,0.00021917,4]
[346113202,1734709833309,-500.0,0.00021917,4]
[346113203,1734709833319,-500.0,0.00021917,4]
[346113204,1734709833329,-500.0,0.00021917,4]
[346113205,1734709833339,-500.0,0.00021917,4]
[346113206,1734709833349,-500.0,0.00021917,4]
[346113207,1734709833360,-500.0,0.00021917,2]
[346113208,1734709833370,-500.0,0.00021917,4]
[346113209,1734709833380,-500.0,0.00021917,4]
[346113210,1734709833391,-500.0,0.00021917,4]
[346113211,1734709833402,-300.0,0.00021917,4]
[346113212,1734709833413,-468.59,0.00021917,4]
[346113213,1734709833424,-500.0,0.00021917,4]
[346113214,1734709833434,-500.0,0.00021917,4]
[346113215,1734709833445,-500.0,0.00021917,4]
[346113216,1734709833455,-500.0,0.00021917,4]
[346113217,1734709833465,-500.0,0.00021917,4]
[346113218,1734709833475,-182.70723662,0.00021917,4]
[346113219,1734709833486,-500.0,0.00021917,4]
[346113220,1734709833498,-260.42225563,0.00021917,4]
[346113221,1734709833509,-500.0,0.00021917,4]
[346113222,1734709833519,-500.0,0.00021917,4]
[346113223,1734709833531,-500.0,0.00021917,4]
[346113224,1734709833543,-500.0,0.00021917,4]
[346113225,1734709833553,-500.0,0.00021917,4]
[346113226,1734709833563,-500.0,0.00021917,4]
[346113227,1734709833573,-500.0,0.00021917,4]
[346113228,1734709833584,-500.0,0.00021917,4]
[346113229,1734709833592,-150.0,0.00021965,2]
[346113230,1734709833602,-937.46646436,0.00021986,2]
[346113231,1734709833613,-344.0,0.00022,2]
[346113232,1734709833622,-4131.0,0.00022,3]
[346113233,1734709833633,-153.0,0.00022027,2]
[346113234,1734709833643,-153.0,0.00022027,2]
[346113235,1734709833653,-153.0,0.00022027,2]
[346113236,1734709833664,-153.0,0.00022027,2]
[346113237,1734709833674,-153.0,0.00022027,2]
[346113238,1734709833684,-153.0,0.00022027,2]
[346113239,1734709833695,-153.0,0.00022027,2]
[346113240,1734709833706,-153.0,0.00022027,2]
[346113241,1734709833718,-153.0,0.00022027,2]
[346113242,1734709833728,-153.0,0.00022027,2]
[346113243,1734709833739,-153.0,0.00022027,2]
[346113244,1734709833757,-153.0,0.00022027,2]
[346113245,1734709833768,-153.0,0.00022027,2]
[346113246,1734709833779,-153.0,0.00022027,2]
[346113247,1734709833790,-153.0,0.00022027,2]
[346113248,1734709833803,-153.0,0.00022027,2]
[346113249,1734709833815,-153.0,0.00022027,2]
[346113250,1734709833829,-153.0,0.00022027,2]
[346113251,1734709833842,-153.0,0.00022027,2]
[346113252,1734709833854,-153.0,0.00022027,2]
[346113253,1734709833866,-153.0,0.00022027,2]
[346113254,1734709833876,-153.0,0.00022027,2]
[346113255,1734709833888,-153.0,0.00022027,2]
[346113256,1734709833898,-153.0,0.00022027,2]
[346113257,1734709833910,-153.0,0.00022027,2]
[346113258,1734709833922,-153.0,0.00022027,2]
[346113259,1734709833934,-153.0,0.00022027,2]
[346113260,1734709833947,-159.74909713,0.00022086,2]
[346113261,1734709833958,-1500.0,0.00022091,2]
[346113262,1734709833970,-600.0,0.0002216,2]
[346113263,1734709833982,-500.0,0.0002216,2]
[346113264,1734709833994,-500.0,0.0002219,4]
[346113265,1734709834006,-500.0,0.0002219,4]
[346113266,1734709834019,-500.0,0.0002219,4]
[346113267,1734709834031,-500.0,0.0002219,4]
[346113268,1734709834043,-500.0,0.0002219,4]
[346113269,1734709834054,-500.0,0.0002219,4]
[346113270,1734709834065,-500.0,0.0002219,4]
[346113271,1734709834077,-915.44,0.0002219,4]
[346113272,1734709834087,-500.0,0.0002219,4]
[346113273,1734709834097,-649.57,0.0002219,4]
[346113274,1734709834108,-551.89,0.0002219,4]
[346113275,1734709834120,-500.0,0.0002219,4]
[346113276,1734709834133,-562.77,0.0002219,4]
[346113277,1734709834145,-549.41,0.0002219,4]
[346113278,1734709834157,-500.0,0.0002219,4]
[346113279,1734709834169,-500.0,0.0002219,4]
[346113280,1734709834181,-695.7,0.0002219,4]
[346113281,1734709834193,-500.0,0.0002219,4]
[346113282,1734709834204,-3328.97,0.0002219,4]
[346113283,1734709834216,-500.0,0.0002219,4]
[346113284,1734709834235,-500.0,0.0002219,4]
[346113285,1734709834250,-500.0,0.0002219,4]
[346113286,1734709834261,-500.0,0.0002219,4]
[346113287,1734709834275,-500.0,0.0002219,4]
[346113288,1734709834288,-500.0,0.0002219,4]
[346113289,1734709834300,-500.0,0.0002219,4]
[346113290,1734709834311,-500.0,0.0002219,4]
[346113291,1734709834324,-768.71,0.0002219,4]
[346113292,1734709834337,-581.43,0.0002219,4]
[346113293,1734709834349,-500.0,0.00022191,4]
[346113294,1734709834361,-187.47545485,0.00022191,4]
[346113295,1734709834373,-500.0,0.00022191,4]
[346113296,1734709834386,-500.0,0.00022191,4]
[346113297,1734709834397,-500.0,0.00022191,4]
[346113298,1734709834409,-247.00072952,0.00022191,4]
[346113299,1734709834420,-273.13122881,0.00022191,4]
[346113300,1734709834431,-500.0,0.00022191,4]
[346113301,1734709834444,-500.0,0.00022191,4]
[346113302,1734709834456,-360.11791577,0.00022191,4]
[346113303,1734709834468,-500.0,0.00022191,4]
[346113304,1734709834481,-500.0,0.00022191,2]
[346113305,1734709834499,-500.0,0.00022191,4]
[346113306,1734709834510,-500.0,0.00022191,4]
[346113307,1734709834521,-500.0,0.00022191,4]
[346113308,1734709834533,-500.0,0.00022191,4]
[346113309,1734709834544,-500.0,0.00022191,4]
[346113310,1734709834555,-500.0,0.00022191,4]
[346113311,1734709834567,-500.0,0.00022191,4]
[346113312,1734709834577,-500.0,0.00022191,4]
[346113313,1734709834587,-500.0,0.00022191,4]
[346113314,1734709834600,-500.0,0.00022191,4]
[346113315,1734709834615,-500.0,0.00022191,4]
[346113316,1734709834628,-500.0,0.00022191,4]
[346113317,1734709834640,-192.58104183,0.00022191,4]
[346113318,1734709834654,-500.0,0.00022191,4]
[346113319,1734709834665,-344.0,0.00022192,2]
[346113320,1734709834676,-937.46646434,0.00022199,2]
[346113321,1734709834687,-300.0,0.00022214,2]
[346113322,1734709834697,-226.28,0.00022222,2]
[346113323,1734709834709,-1000.0,0.00022229,2]
[346113324,1734709834720,-2500.0,0.00022229,2]
[346113325,1734709834731,-200.0,0.00022303,2]
[346113326,1734709834746,-154.608058,0.00022329,4]
[346113327,1734709834762,-500.0,0.00022329,4]
[346113328,1734709834775,-500.0,0.00022329,4]
[346113329,1734709834787,-500.0,0.00022329,4]
[346113330,1734709834800,-156.913729,0.00022329,4]
[346113331,1734709834812,-500.0,0.00022329,4]
[346113332,1734709834823,-865.8,0.00022329,4]
[346113333,1734709834834,-500.0,0.00022329,4]
[346113334,1734709834845,-3061.98,0.00022329,4]
[346113335,1734709834855,-1572.9,0.00022329,4]
[346113336,1734709834867,-548.23,0.00022329,4]
[346113337,1734709834878,-691.04,0.00022329,4]
[346113338,1734709834889,-500.0,0.00022329,4]
[346113339,1734709834900,-189.77670026,0.00022329,4]
[346113340,1734709834911,-500.0,0.00022329,4]
[346113341,1734709834921,-209.0,0.0002233,2]
[346113342,1734709834932,-515.59844933,0.00022362,4]
[346113343,1734709834944,-500.0,0.00022362,4]
[346113344,1734709834956,-500.0,0.00022362,4]
[346113345,1734709834967,-500.0,0.00022362,4]
[346113346,1734709834979,-500.0,0.00022362,4]
[346113347,1734709834990,-500.0,0.00022362,4]
[346113348,1734709835005,-500.0,0.00022362,4]
[346113349,1734709835022,-516.46036895,0.00022362,4]
[346113350,1734709835034,-501.42544386,0.00022362,4]
[346113351,1734709835047,-500.0,0.00022362,4]
[346113352,1734709835058,-500.0,0.00022362,4]
[346113353,1734709835071,-500.0,0.00022362,3]
[346113354,1734709835082,-500.0,0.00022362,4]
[346113355,1734709835094,-500.0,0.00022362,4]
[346113356,1734709835105,-500.0,0.00022362,4]
[346113357,1734709835117,-500.0,0.00022362,4]
[346113358,1734709835128,-632.94,0.00022362,4]
[346113359,1734709835139,-500.0,0.00022362,4]
[346113360,1734709835151,-500.0,0.00022362,4]
[346113361,1734709835163,-500.0,0.00022362,4]
[346113362,1734709835174,-500.0,0.00022362,4]
[346113363,1734709835187,-500.0,0.00022362,4]
[346113364,1734709835199,-3094.12,0.00022362,4]
[346113365,1734709835210,-500.0,0.00022362,4]
[346113366,1734709835221,-500.0,0.00022362,4]
[346113367,1734709835231,-500.0,0.00022362,4]
[346113368,1734709835244,-1158.38,0.00022362,4]
[346113369,1734709835256,-500.0,0.00022362,4]
[346113370,1734709835268,-592.41693892,0.00022362,4]
[346113371,1734709835280,-500.0,0.00022362,4]
[346113372,1734709835291,-500.0,0.00022362,4]
[346113373,1734709835304,-640.55,0.00022362,4]
[346113374,1734709835315,-500.0,0.00022362,4]
[346113375,1734709835327,-500.0,0.00022362,4]
[346113376,1734709835339,-500.0,0.00022362,4]
[346113377,1734709835350,-500.0,0.00022362,4]
[346113378,1734709835360,-500.0,0.00022362,4]
[346113379,1734709835371,-500.0,0.00022362,4]
[346113380,1734709835382,-500.0,0.00022362,4]
[346113381,1734709835393,-500.0,0.00022362,4]
[346113382,1734709835404,-500.0,0.00022362,4]
[346113383,1734709835415,-500.0,0.00022362,4]
[346113384,1734709835425,-500.0,0.00022362,4]
[346113385,1734709835436,-500.0,0.00022362,4]
[346113386,1734709835447,-500.0,0.00022362,4]
[346113387,1734709835458,-430.63553357,0.00022362,4]
[346113388,1734709835468,-528.70635978,0.00022363,4]
[346113389,1734709835479,-500.0,0.00022363,4]
[346113390,1734709835491,-325.8921342,0.00022363,4]
[346113391,1734709835504,-500.0,0.00022363,4]
[346113392,1734709835516,-515.4746709,0.00022363,4]
[346113393,1734709835527,-500.0,0.00022363,4]
[346113394,1734709835538,-511.25997651,0.00022363,4]
[346113395,1734709835549,-513.76476,0.00022363,4]
[346113396,1734709835560,-512.85485168,0.00022363,4]
[346113397,1734709835571,-509.29914945,0.00022363,4]
[346113398,1734709835582,-510.19575914,0.00022363,4]
[346113399,1734709835593,-510.73716831,0.00022363,4]
[346113400,1734709835603,-500.0,0.00022363,4]
[346113401,1734709835614,-516.4472395,0.00022363,4]
[346113402,1734709835625,-500.0,0.00022363,4]
[346113403,1734709835636,-512.382627,0.00022363,4]
[346113404,1734709835646,-509.48937328,0.00022363,4]
[346113405,1734709835657,-514.27850794,0.00022363,4]
[346113406,1734709835667,-505.17845752,0.00022363,4]
[346113407,1734709835678,-500.0,0.00022363,4]
[346113408,1734709835688,-517.67960942,0.00022363,4]
[346113409,1734709835699,-516.46682846,0.00022363,4]
[346113410,1734709835710,-500.0,0.00022363,4]
[346113411,1734709835720,-500.0,0.00022363,4]
[346113412,1734709835731,-500.0,0.00022363,4]
[346113413,1734709835743,-500.0,0.00022363,4]
[346113414,1734709835757,-533.89328356,0.00022363,4]
[346113415,1734709835767,-554.22694013,0.00022363,4]
[346113416,1734709835778,-509.46053649,0.00022363,4]
[346113417,1734709835790,-500.0,0.00022363,4]
[346113418,1734709835800,-500.0,0.00022363,4]
[346113419,1734709835810,-500.0,0.00022363,4]
[346113420,1734709835822,-746.93,0.00022363,4]
[346113421,1734709835833,-500.0,0.00022363,4]
[346113422,1734709835844,-500.0,0.00022363,4]
[346113423,1734709835855,-727.58,0.00022363,4]
[346113424,1734709835866,-500.0,0.00022363,4]
[346113425,1734709835877,-500.0,0.00022363,4]
[346113426,1734709835887,-500.0,0.00022363,4]
[346113427,1734709835899,-1272.69,0.00022363,4]
[346113428,1734709835910,-507.55144323,0.00022363,4]
[346113429,1734709835919,-509.45764662,0.00022363,4]
[346113430,1734709835930,-623.94,0.00022363,4]
[346113431,1734709835940,-500.0,0.00022363,4]
[346113432,1734709835950,-500.0,0.00022363,4]
[346113433,1734709835960,-836.44,0.00022363,4]
[346113434,1734709835971,-5000.0,0.00022363,2]
[346113435,1734709835981,-200.0,0.00022367,2]
[346113436,1734709835992,-200.0,0.0002238,2]
[346113437,1734709836003,-937.46646434,0.00022411,2]
[346113438,1734709836013,-417.96137961,0.00022426,2]
[346113439,1734709836029,-568.17990878,0.00022426,2]
[346113440,1734709836051,-500.0,0.00022329,4]
[346113441,1734709836061,-13.85871161,0.00022426,2]
[346113442,1734709836072,-500.0,0.00022462,4]
[346113443,1734709836082,-500.0,0.00022462,4]
[346113444,1734709836093,-500.0,0.00022462,4]
[346113445,1734709836103,-500.0,0.00022462,4]
[346113446,1734709836114,-500.0,0.00022462,4]
[346113447,1734709836124,-203.38812843,0.00022462,4]
[346113448,1734709836135,-500.0,0.00022463,4]
[346113449,1734709836146,-503.60400697,0.00022463,4]
[346113450,1734709836156,-500.0,0.00022463,4]
[346113451,1734709836166,-500.0,0.00022463,4]
[346113452,1734709836177,-500.0,0.00022463,4]
[346113453,1734709836188,-500.0,0.00022463,4]
[346113454,1734709836198,-500.0,0.00022463,4]
[346113455,1734709836209,-500.0,0.00022463,4]
[346113456,1734709836219,-500.0,0.00022463,4]
[346113457,1734709836230,-500.0,0.00022463,4]
[346113458,1734709836240,-186.06849328,0.00022463,4]
[346113459,1734709836251,-500.52591345,0.00022463,4]
[346113460,1734709836263,-501.31356384,0.00022463,4]
[346113461,1734709836274,-472.00598658,0.00022463,4]
[346113462,1734709836285,-500.0,0.00022463,4]
[346113463,1734709836296,-500.0,0.00022463,4]
[346113464,1734709836307,-500.0,0.00022463,4]
[346113465,1734709836317,-500.0,0.00022463,4]
[346113466,1734709836328,-500.66971461,0.00022463,4]
[346113467,1734709836339,-500.0,0.00022463,4]
[346113468,1734709836349,-500.0,0.00022463,4]
[346113469,1734709836360,-500.0,0.00022463,4]
[346113470,1734709836370,-500.0,0.00022463,4]
[346113471,1734709836381,-500.0,0.00022463,4]
[346113472,1734709836391,-577.69394722,0.00022463,4]
[346113473,1734709836402,-500.0,0.00022463,4]
[346113474,1734709836412,-509.47,0.00022463,4]
[346113475,1734709836422,-500.0,0.00022463,4]
[346113476,1734709836432,-500.0,0.00022463,4]
[346113477,1734709836443,-500.0,0.00022463,4]
[346113478,1734709836453,-500.0,0.00022463,4]
[346113479,1734709836464,-500.0,0.00022463,4]
[346113480,1734709836475,-500.0,0.00022463,4]
[346113481,1734709836485,-500.0,0.00022463,4]
[346113482,1734709836498,-500.0,0.00022463,4]
[346113483,1734709836508,-534.58838382,0.00022463,4]
[346113484,1734709836519,-500.0,0.00022463,4]
[346113485,1734709836529,-500.0,0.00022463,4]
[346113486,1734709836540,-500.0,0.00022463,4]
[346113487,1734709836550,-500.0,0.00022463,4]
[346113488,1734709836561,-500.0,0.00022463,4]
[346113489,1734709836572,-500.0,0.00022463,4]
[346113490,1734709836582,-500.0,0.00022463,4]
[346113491,1734709836592,-563.41,0.00022463,4]
[346113492,1734709836603,-610.66,0.00022463,4]
[346113493,1734709836613,-500.0,0.00022463,4]
[346113494,1734709836623,-882.55,0.00022463,4]
[346113495,1734709836634,-500.0,0.00022463,4]
[346113496,1734709836644,-500.0,0.00022463,4]
[346113497,1734709836655,-500.0,0.00022463,4]
[346113498,1734709836665,-500.0,0.00022463,4]
[346113499,1734709836676,-536.56,0.00022463,4]
[346113500,1734709836686,-500.0,0.00022463,4]
[346113501,1734709836697,-500.0,0.00022463,4]
[346113502,1734709837026,-562.16,0.00022463,4]
[346113503,1734709837037,-500.0,0.00022463,4]
[346113504,1734709837047,-370.19362413,0.00022463,4]
[346113505,1734709837057,-500.0,0.00022463,4]
[346113506,1734709837066,-500.0,0.00022463,4]
[346113507,1734709837076,-1116.27,0.00022463,4]
[346113508,1734709837086,-500.0,0.00022463,4]
[346113509,1734709837096,-995.89,0.00022463,4]
[346113510,1734709837105,-500.0,0.00022463,4]
[346113511,1734709837116,-500.0,0.00022463,4]
[346113512,1734709837126,-500.0,0.00022463,4]
[346113513,1734709837136,-500.0,0.00022463,4]
[346113514,1734709837145,-500.0,0.00022463,4]
[346113515,1734709837155,-500.0,0.00022463,4]
[346113516,1734709837164,-500.0,0.00022463,4]
[346113517,1734709837174,-500.0,0.00022463,4]
[346113518,1734709837184,-500.0,0.00022463,4]
[346113519,1734709837193,-500.0,0.00022463,4]
[346113520,1734709837203,-500.0,0.00022463,4]
[346113521,1734709837212,-500.0,0.00022463,4]
[346113522,1734709837222,-500.0,0.00022463,4]
[346113523,1734709837231,-500.0,0.00022463,4]
[346113524,1734709837241,-500.0,0.00022463,4]
[346113525,1734709837250,-685.29,0.00022463,4]
[346113526,1734709837260,-500.0,0.00022463,4]
[346113527,1734709837269,-500.0,0.00022463,4]
[346113528,1734709837278,-618.48,0.00022463,4]
[346113529,1734709837288,-1205.4,0.00022463,4]
[346113530,1734709837297,-808.43,0.00022463,4]
[346113531,1734709837307,-500.0,0.00022463,4]
[346113532,1734709837316,-500.0,0.00022464,4]
[346113533,1734709837325,-500.0,0.00022464,4]
[346113534,1734709837335,-500.0,0.00022464,4]
[346113535,1734709837345,-500.0,0.00022464,4]
[346113536,1734709837354,-500.0,0.00022464,4]
[346113537,1734709837365,-915.44,0.00022464,4]
[346113538,1734709837374,-500.0,0.00022464,4]
[346113539,1734709837384,-649.57,0.00022464,4]
[346113540,1734709837394,-551.89,0.00022464,4]
[346113541,1734709837403,-500.0,0.00022464,4]
[346113542,1734709837413,-562.77,0.00022464,4]
[346113543,1734709837423,-549.41,0.00022464,4]
[346113544,1734709837432,-500.0,0.00022464,4]
[346113545,1734709837442,-500.0,0.00022464,4]
[346113546,1734709837451,-695.7,0.00022464,4]
[346113547,1734709837461,-500.0,0.00022464,4]
[346113548,1734709837471,-3328.97,0.00022464,4]
[346113549,1734709837481,-500.0,0.00022464,4]
[346113550,1734709837490,-500.0,0.00022464,4]
[346113551,1734709837501,-500.0,0.00022464,4]
[346113552,1734709837511,-500.0,0.00022464,4]
[346113553,1734709837520,-500.0,0.00022464,4]
[346113554,1734709837530,-500.0,0.00022464,4]
[346113555,1734709837539,-500.0,0.00022464,4]
[346113556,1734709837549,-768.71,0.00022464,4]
[346113557,1734709837558,-581.43,0.00022464,4]
[346113558,1734709837567,-500.0,0.00022465,4]
[346113559,1734709837577,-500.0,0.00022465,4]
[346113560,1734709837586,-500.0,0.00022465,4]
[346113561,1734709837595,-500.0,0.00022465,4]
[346113562,1734709837604,-562.08324197,0.00022465,4]
[346113563,1734709837613,-500.0,0.00022465,4]
[346113564,1734709837622,-500.0,0.00022465,4]
[346113565,1734709837632,-631.12258128,0.00022465,2]
[346113566,1734709837642,-500.0,0.00022465,4]
[346113567,1734709837652,-500.0,0.00022465,4]
[346113568,1734709837662,-500.0,0.00022465,4]
[346113569,1734709837672,-442.49036497,0.00022465,4]
[346113570,1734709837682,-500.0,0.00022465,4]
[346113571,1734709837691,-500.0,0.00022465,4]
[346113572,1734709837701,-500.0,0.00022465,4]
[346113573,1734709837710,-500.0,0.00022465,4]
[346113574,1734709837720,-500.0,0.00022465,4]
[346113575,1734709837729,-500.0,0.00022465,4]
[346113576,1734709837739,-500.0,0.00022465,4]
[346113577,1734709837753,-181.10048905,0.00022465,4]
[346113578,1734709837764,-500.0,0.00022465,4]
[346113579,1734709837773,-599.08,0.000225,2]
[346113580,1734709837783,-500.0,0.00022603,4]
[346113581,1734709837795,-500.0,0.00022603,4]
[346113582,1734709837805,-500.0,0.00022603,4]
[346113583,1734709837814,-500.0,0.00022603,4]
[346113584,1734709837825,-865.8,0.00022603,4]
[346113585,1734709837835,-500.0,0.00022603,4]
[346113586,1734709837845,-3061.98,0.00022603,4]
[346113587,1734709837854,-1572.9,0.00022603,4]
[346113588,1734709837865,-548.23,0.00022603,4]
[346113589,1734709837875,-691.04,0.00022603,4]
[346113590,1734709837885,-500.0,0.00022603,4]
[346113591,1734709837895,-500.0,0.00022603,4]
[346113592,1734709837905,-937.46646434,0.00022624,2]
[346113593,1734709837914,-511.60074554,0.00022636,4]
[346113594,1734709837924,-545.93289633,0.00022636,4]
[346113596,1734709837934,-500.0,0.00022636,4]
[346113598,1734709837944,-500.0,0.00022636,4]
[346113599,1734709837954,-500.0,0.00022636,4]
[346113601,1734709837964,-632.94,0.00022636,4]
[346113604,1734709837974,-500.0,0.00022636,4]
[346113606,1734709837984,-500.0,0.00022636,4]
[346113608,1734709837997,-500.0,0.00022636,4]
[346113609,1734709838007,-500.0,0.00022636,4]
[346113611,1734709838017,-500.0,0.00022636,4]
[346113613,1734709838027,-3094.12,0.00022636,4]
[346113615,1734709838037,-500.0,0.00022636,4]
[346113617,1734709838047,-1158.38,0.00022636,4]
[346113619,1734709838057,-500.0,0.00022636,4]
[346113620,1734709838067,-500.0,0.00022636,4]
[346113621,1734709838077,-500.0,0.00022636,4]
[346113624,1734709838087,-193.19,0.00022636,4]
[346113625,1734709838097,-211.8,0.00022637,4]
[346113629,1734709838107,-500.0,0.00022637,4]